lending/lending_fUSD_20250131
["ID","MTS","AMOUNT","RATE_DAILY","PERIOD"]
[351095863,1738332634599,-500.0,0.00016438,2]
[351095864,1738332634609,-500.0,0.00016438,2]
[351095865,1738332634618,-530.36,0.00016438,2]
[351095866,1738332634627,-500.0,0.00016438,2]
[351095867,1738332634637,-500.0,0.00016438,2]
[351095868,1738332634647,-509.73232581,0.00016438,2]
[351095869,1738332634657,-500.0,0.00016438,2]
[351095870,1738332634667,-162.836368,0.00016438,2]
[351095871,1738332634677,-500.0,0.00016438,2]
[351095872,1738332634687,-500.0,0.00016438,2]
[351095873,1738332634696,-500.0,0.00016438,2]
[351095874,1738332634705,-500.0,0.00016438,2]
[351095875,1738332634714,-500.0,0.00016438,2]
[351095876,1738332634724,-500.0,0.00016438,2]
[351095877,1738332634734,-882.77,0.00016438,2]
[351095878,1738332634743,-500.0,0.00016438,2]
[351095879,1738332634752,-500.0,0.00016438,2]
[351095880,1738332634762,-577.12,0.00016438,2]
[351095881,1738332634772,-500.0,0.00016438,2]
[351095882,1738332634783,-500.0,0.00016438,2]
[351095883,1738332634793,-500.0,0.00016438,2]
[351095884,1738332634803,-500.0,0.00016438,2]
[351095885,1738332634812,-638.97,0.00016438,2]
[351095886,1738332634822,-823.05,0.00016438,2]
[351095887,1738332634831,-652.94,0.00016438,2]
[351095888,1738332634842,-500.0,0.00016438,2]
[351095889,1738332634851,-500.0,0.00016438,2]
[351095890,1738332634861,-500.0,0.00016438,2]
[351095891,1738332634871,-500.0,0.00016438,2]
[351095892,1738332634881,-500.0,0.00016438,2]
[351095893,1738332634890,-500.0,0.00016438,2]
[351095894,1738332634900,-500.0,0.00016438,2]
[351095895,1738332634909,-961.61,0.00016438,2]
[351095896,1738332634918,-500.0,0.00016438,2]
[351095897,1738332634928,-500.0,0.00016438,2]
[351095898,1738332634937,-500.0,0.00016438,2]
[351095899,1738332634946,-500.0,0.00016438,2]
[351095900,1738332634956,-159.506156,0.00016438,2]
[351095901,1738332634965,-538.61,0.00016438,2]
[351095902,1738332634975,-592.67,0.00016438,2]
[351095903,1738332634984,-500.0,0.00016438,2]
[351095904,1738332634994,-500.0,0.00016438,2]
[351095905,1738332635003,-500.0,0.00016438,2]
[351095906,1738332635013,-500.0,0.00016438,2]
[351095907,1738332635022,-500.0,0.00016438,2]
[351095908,1738332635032,-500.0,0.00016438,2]
[351095909,1738332635041,-500.0,0.00016438,2]
[351095910,1738332635051,-500.0,0.00016438,2]
[351095911,1738332635060,-500.0,0.00016438,2]
[351095912,1738332635070,-669.37,0.00016438,2]
[351095913,1738332635079,-500.0,0.00016438,2]
[351095914,1738332635089,-881.92,0.00016438,2]
[351095915,1738332635100,-504.26,0.00016438,2]
[351095916,1738332635110,-650.0,0.00016438,2]
[351095917,1738332635119,-500.0,0.00016438,2]
[351095918,1738332635129,-534.45,0.00016438,2]
[351095919,1738332635138,-500.0,0.00016438,2]
[351095920,1738332635148,-500.0,0.00016438,2]
[351095921,1738332635157,-519.02,0.00016438,2]
[351095922,1738332635166,-918.12,0.00016438,2]
[351095923,1738332635175,-590.88,0.00016438,2]
[351095924,1738332635185,-500.0,0.00016438,2]
[351095925,1738332635194,-500.0,0.00016438,2]
[351095926,1738332635203,-500.0,0.00016438,2]
[351095927,1738332635212,-500.0,0.00016438,2]
[351095928,1738332635222,-500.0,0.00016438,2]
[351095929,1738332635231,-500.0,0.00016438,2]
[351095930,1738332635240,-1789.74,0.00016438,2]
[351095931,1738332635250,-500.0,0.00016438,2]
[351095932,1738332635259,-500.0,0.00016438,2]
[351095933,1738332635269,-500.0,0.00016438,2]
[351095934,1738332635279,-500.0,0.00016438,2]
[351095935,1738332635288,-1065.21,0.00016438,2]
[351095936,1738332635297,-537.96,0.00016438,2]
[351095937,1738332635307,-786.65,0.00016438,2]
[351095938,1738332635316,-331.00390144,0.00016438,2]
[351095939,1738332635325,-500.0,0.00016438,2]
[351095940,1738332635339,-1353.62,0.00016438,2]
[351095941,1738332635350,-625.42,0.00016438,2]
[351095942,1738332635359,-500.0,0.00016438,2]
[351095943,1738332635369,-503.46,0.00016438,2]
[351095944,1738332635378,-500.0,0.00016438,2]
[351095945,1738332635389,-500.0,0.00016438,2]
[351095946,1738332635398,-500.0,0.00016438,2]
[351095947,1738332635408,-594.09,0.00016438,2]
[351095948,1738332635418,-500.0,0.00016438,2]
[351095949,1738332635427,-1218.82,0.00016438,2]
[351095950,1738332635436,-500.0,0.00016438,2]
[351095951,1738332635445,-500.0,0.00016438,2]
[351095952,1738332635455,-500.0,0.00016438,2]
[351095953,1738332635464,-500.0,0.00016438,2]
[351095954,1738332635473,-500.0,0.00016438,2]
[351095955,1738332635483,-932.24,0.00016438,2]
[351095956,1738332635493,-500.0,0.00016438,2]
[351095957,1738332635502,-768.06,0.00016438,2]
[351095958,1738332635513,-500.0,0.00016438,2]
[351095959,1738332635523,-641.69267035,0.00016438,2]
[351095960,1738332635533,-500.0,0.00016438,2]
[351095961,1738332635542,-1469.98,0.00016438,2]
[351095962,1738332635551,-2360.23,0.00016438,2]
[351095963,1738332635561,-500.0,0.00016438,2]
[351095964,1738332635570,-658.53,0.00016438,2]
[351095965,1738332635580,-500.0,0.00016438,2]
[351095966,1738332635590,-957.1,0.00016438,2]
[351095967,1738332635600,-720.75,0.00016438,2]
[351095968,1738332635609,-512.99,0.00016438,2]
[351095969,1738332635618,-8979.95,0.00016438,2]
[351095970,1738332635629,-516.75,0.00016438,2]
[351095971,1738332635638,-500.0,0.00016438,2]
[351095972,1738332635648,-1105.46,0.00016438,2]
[351095973,1738332635657,-693.04,0.00016438,2]
[351095974,1738332635666,-500.0,0.00016438,2]
[351095975,1738332635676,-744.12,0.00016438,2]
[351095976,1738332635685,-1116.28,0.00016438,2]
[351095977,1738332635694,-500.0,0.00016438,2]
[351095978,1738332635703,-620.01,0.00016438,2]
[351095979,1738332635712,-1169.26,0.00016438,2]
[351095980,1738332635721,-500.0,0.00016438,2]
[351095981,1738332635730,-500.0,0.00016438,2]
[351095982,1738332635740,-349.34069022,0.00016438,2]
[351095983,1738332635749,-500.0,0.00016438,2]
[351095984,1738332635758,-1366.36,0.00016438,2]
[351095985,1738332635767,-739.63,0.00016438,2]
[351095986,1738332635776,-1695.89,0.00016438,2]
[351095987,1738332635786,-2793.49,0.00016438,2]
[351095988,1738332635796,-873.25,0.00016438,2]
[351095989,1738332635805,-153.065871,0.00016438,2]
[351095990,1738332635816,-500.0,0.00016438,2]
[351095991,1738332635827,-500.0,0.00016438,2]
[351095992,1738332635837,-774.95,0.00016438,2]
[351095993,1738332635848,-500.0,0.00016438,2]
[351095994,1738332635857,-549.49,0.00016438,2]
[351095995,1738332635867,-684.43,0.00016438,2]
[351095996,1738332635876,-856.1,0.00016438,2]
[351095997,1738332635885,-904.34,0.00016438,2]
[351095998,1738332635895,-500.0,0.00016438,2]
[351095999,1738332635904,-500.0,0.00016438,2]
[351096000,1738332635913,-2733.1,0.00016438,2]
[351096001,1738332635923,-373.63095771,0.00016438,2]
[351096002,1738332635932,-500.0,0.00016438,2]
[351096003,1738332635942,-560.54,0.00016438,2]
[351096004,1738332635951,-1219.34,0.00016438,2]
[351096005,1738332635961,-593.5,0.00016438,2]
[351096006,1738332635971,-762.18,0.00016438,2]
[351096007,1738332635981,-586.5,0.00016438,2]
[351096008,1738332635991,-500.0,0.00016438,2]
[351096009,1738332636000,-500.0,0.00016438,2]
[351096010,1738332636010,-500.0,0.00016438,2]
[351096011,1738332636019,-2343.91,0.00016438,2]
[351096012,1738332636028,-500.0,0.00016438,2]
[351096013,1738332636038,-500.0,0.00016438,2]
[351096014,1738332636047,-500.0,0.00016438,2]
[351096015,1738332636056,-1145.29,0.00016438,2]
[351096016,1738332636065,-570.14,0.00016438,2]
[351096017,1738332636075,-518.75,0.00016438,2]
[351096018,1738332636084,-1584.08,0.00016438,2]
[351096019,1738332636095,-1594.28,0.00016438,2]
[351096020,1738332636104,-579.22,0.00016438,2]
[351096021,1738332636113,-500.0,0.00016438,2]
[351096022,1738332636123,-500.0,0.00016438,2]
[351096023,1738332636133,-500.0,0.00016438,2]
[351096024,1738332636142,-500.0,0.00016438,2]
[351096025,1738332636151,-859.86,0.00016438,2]
[351096026,1738332636160,-528.7,0.00016438,2]
[351096027,1738332636169,-568.51,0.00016438,2]
[351096028,1738332636178,-500.0,0.00016438,2]
[351096029,1738332636187,-1042.43,0.00016438,2]
[351096030,1738332636197,-1245.91,0.00016438,2]
[351096031,1738332636207,-1419.72,0.00016438,2]
[351096032,1738332636217,-1099.88,0.00016438,2]
[351096033,1738332636228,-500.0,0.00016438,2]
[351096034,1738332636238,-600.88,0.00016438,2]
[351096035,1738332636247,-500.0,0.00016438,2]
[351096036,1738332636256,-500.0,0.00016438,2]
[351096037,1738332636265,-768.46,0.00016438,2]
[351096038,1738332636275,-1374.71,0.00016438,2]
[351096039,1738332636284,-1491.85,0.00016438,2]
[351096040,1738332636294,-500.0,0.00016438,2]
[351096041,1738332636303,-500.0,0.00016438,2]
[351096042,1738332636313,-500.0,0.00016438,2]
[351096043,1738332636327,-722.81,0.00016438,2]
[351096044,1738332636337,-500.0,0.00016438,2]
[351096045,1738332636349,-888.04,0.00016438,2]
[351096046,1738332636359,-2334.21,0.00016438,2]
[351096047,1738332636369,-633.21,0.00016438,2]
[351096048,1738332636379,-959.44,0.00016438,2]
[351096049,1738332636388,-1000.0,0.00016438,2]
[351096050,1738332636403,-500.0,0.00016438,2]
[351096051,1738332636413,-500.0,0.00016438,2]
[351096052,1738332636423,-500.0,0.00016438,2]
[351096053,1738332636433,-2396.07,0.00016438,2]
[351096054,1738332636442,-1190.66,0.00016438,2]
[351096055,1738332636451,-582.68,0.00016438,2]
[351096056,1738332636461,-4373.7,0.00016438,2]
[351096057,1738332636470,-895.01,0.00016438,2]
[351096058,1738332636479,-500.0,0.00016438,2]
[351096059,1738332636490,-500.0,0.00016438,2]
[351096060,1738332636499,-500.0,0.00016438,2]
[351096061,1738332636508,-500.0,0.00016438,2]
[351096062,1738332636518,-1163.66,0.00016438,2]
[351096063,1738332636588,-500.0,0.00016438,2]
[351096064,1738332636600,-599.45,0.00016438,2]
[351096065,1738332636610,-500.0,0.00016438,2]
[351096066,1738332636620,-500.0,0.00016438,2]
[351096067,1738332636631,-638.08,0.00016438,2]
[351096068,1738332636641,-1189.73,0.00016438,2]
[351096069,1738332636651,-500.0,0.00016438,2]
[351096070,1738332636662,-1217.27,0.00016438,2]
[351096071,1738332636671,-608.86,0.00016438,2]
[351096072,1738332636681,-500.0,0.00016438,2]
[351096073,1738332636690,-803.29,0.00016438,2]
[351096074,1738332636700,-530.98,0.00016438,2]
[351096075,1738332636709,-1599.16,0.00016438,2]
[351096076,1738332636719,-1469.23,0.00016438,2]
[351096077,1738332636728,-307.66543915,0.00016438,2]
[351096078,1738332636737,-3827.7,0.00016438,2]
[351096079,1738332636747,-500.0,0.00016438,2]
[351096080,1738332636756,-1565.5,0.00016438,2]
[351096081,1738332636765,-4501.86,0.00016438,2]
[351096082,1738332636775,-1061.56,0.00016438,2]
[351096083,1738332636784,-2029.53,0.00016438,2]
[351096084,1738332636794,-582.82,0.00016438,2]
[351096085,1738332636803,-500.0,0.00016438,2]
[351096086,1738332636812,-500.0,0.00016438,2]
[351096087,1738332636822,-166.26174,0.00016438,2]
[351096088,1738332636831,-500.0,0.00016438,2]
[351096089,1738332636841,-660.81,0.00016438,2]
[351096090,1738332636850,-766.89,0.00016438,2]
[351096091,1738332636859,-500.0,0.00016438,2]
[351096092,1738332636868,-1812.72,0.00016438,2]
[351096093,1738332636878,-1121.23,0.00016438,2]
[351096094,1738332636887,-919.49,0.00016438,2]
[351096095,1738332636897,-1953.98,0.00016438,2]
[351096096,1738332636906,-3472.74,0.00016438,2]
[351096097,1738332636915,-2312.96,0.00016438,2]
[351096098,1738332636925,-1767.0,0.00016438,2]
[351096099,1738332636935,-500.0,0.00016438,2]
[351096100,1738332636944,-1363.62,0.00016438,2]
[351096101,1738332636955,-748.94,0.00016438,2]
[351096102,1738332636964,-2290.53,0.00016438,2]
[351096103,1738332636974,-730.74,0.00016438,2]
[351096104,1738332636983,-500.0,0.00016438,2]
[351096105,1738332636992,-875.01,0.00016438,2]
[351096106,1738332637002,-3391.34,0.00016438,2]
[351096107,1738332637012,-1333.93,0.00016438,2]
[351096108,1738332637021,-500.0,0.00016438,2]
[351096109,1738332637030,-1699.89,0.00016438,2]
[351096110,1738332637040,-1395.33,0.00016438,2]
[351096111,1738332637050,-500.0,0.00016438,2]
[351096112,1738332637060,-500.0,0.00016438,2]
[351096113,1738332637070,-1595.92,0.00016438,2]
[351096114,1738332637079,-1636.72,0.00016438,2]
[351096115,1738332637089,-500.0,0.00016438,2]
[351096116,1738332637099,-1126.37847451,0.00016438,2]
[351096117,1738332637397,-339.32152549,0.00016438,2]
[351096118,1738332637406,-706.97847451,0.00016438,2]
[351096119,1738332637424,-485.69152549,0.00016438,2]
[351096120,1738332637434,-560.58110251,0.00016438,2]
[351096121,1738332637455,-1111.38889749,0.00016438,2]
[351096122,1738332637464,-2840.12,0.00016438,2]
[351096123,1738332637474,-818.07,0.00016438,2]
[351096124,1738332637483,-3307.36,0.00016438,2]
[351096125,1738332637492,-2445.7,0.00016438,2]
[351096126,1738332637501,-500.0,0.00016438,2]
[351096127,1738332637511,-682.56,0.00016438,2]
[351096128,1738332637520,-500.0,0.00016438,2]
[351096129,1738332637530,-500.0,0.00016438,2]
[351096130,1738332637539,-500.0,0.00016438,2]
[351096131,1738332637548,-4199.77,0.00016438,2]
[351096132,1738332637558,-592.79,0.00016438,2]
[351096133,1738332637567,-1081.65926344,0.00016438,2]
[351096134,1738332637583,-2241.16073656,0.00016438,2]
[351096135,1738332637593,-500.0,0.00016438,2]
[351096136,1738332637602,-454.51874324,0.00016438,2]
[351096137,1738332637637,-45.48125676,0.00016438,2]
[351096138,1738332637647,-960.47,0.00016438,2]
[351096139,1738332637656,-500.0,0.00016438,2]
[351096140,1738332637666,-1230.34,0.00016438,2]
[351096141,1738332637675,-1581.04,0.00016438,2]
[351096142,1738332637685,-816.34,0.00016438,2]
[351096143,1738332637693,-1024.26,0.00016438,2]
[351096144,1738332637703,-3063.21,0.00016438,2]
[351096145,1738332637712,-848.58,0.00016438,2]
[351096146,1738332637722,-153.065877,0.00016438,2]
[351096147,1738332637731,-1887.7,0.00016438,2]
[351096148,1738332637740,-8403.07,0.00016438,2]
[351096149,1738332637749,-500.0,0.00016438,2]
[351096150,1738332637758,-500.0,0.00016438,2]
[351096151,1738332637767,-500.0,0.00016438,2]
[351096152,1738332637777,-606.13,0.00016438,2]
[351096153,1738332637786,-500.0,0.00016438,2]
[351096154,1738332637796,-2651.9,0.00016438,2]
[351096155,1738332637805,-1199.19,0.00016438,2]
[351096156,1738332637814,-1249.31,0.00016438,2]
[351096157,1738332637825,-500.0,0.00016438,2]
[351096158,1738332637834,-1809.82,0.00016438,2]
[351096159,1738332637843,-967.37,0.00016438,2]
[351096160,1738332637852,-500.0,0.00016438,2]
[351096161,1738332637861,-500.0,0.00016438,2]
[351096162,1738332637870,-635.26,0.00016438,2]
[351096163,1738332637880,-500.0,0.00016438,2]
[351096164,1738332637889,-1003.97,0.00016438,2]
[351096165,1738332637898,-500.0,0.00016438,2]
[351096166,1738332637907,-718.54,0.00016438,2]
[351096167,1738332637917,-637.68,0.00016438,2]
[351096168,1738332637926,-500.0,0.00016438,2]
[351096169,1738332637936,-4192.98,0.00016438,2]
[351096170,1738332637945,-1970.74,0.00016438,2]
[351096171,1738332637954,-3665.28666677,0.00016463,2]
[351096173,1738332637964,-209.06772568,0.00016475,2]
[351096175,1738332637973,-3665.28666677,0.00016525,2]
[351096176,1738332637982,-500.0,0.00016574,2]
[351096178,1738332637991,-830.877821,0.00016575,2]
[351096180,1738332638001,-563.454051,0.00016575,2]
[351096181,1738332638010,-457.45030877,0.00016575,2]
[351096182,1738332638019,-500.0,0.00016575,2]
[351096183,1738332638029,-500.0,0.00016575,2]
[351096184,1738332638039,-500.0,0.00016575,2]
[351096185,1738332638049,-500.0,0.00016575,2]
[351096186,1738332638058,-500.0,0.00016575,2]
[351096187,1738332638068,-500.0,0.00016575,2]
[351096188,1738332638077,-500.0,0.00016575,2]
[351096189,1738332638086,-532.5,0.00016575,2]
[351096190,1738332638097,-500.0,0.00016575,2]
[351096191,1738332638106,-500.0,0.00016575,2]
[351096192,1738332638115,-500.0,0.00016575,2]
[351096193,1738332638125,-500.0,0.00016575,2]
[351096194,1738332638135,-500.0,0.00016575,2]
[351096195,1738332638144,-500.0,0.00016575,2]
[351096196,1738332638153,-500.0,0.00016575,2]
[351096198,1738332638162,-615.54,0.00016575,2]
[351096199,1738332638171,-500.0,0.00016575,2]
[351096200,1738332638180,-500.0,0.00016575,2]
[351096201,1738332638189,-591.89,0.00016575,2]
[351096202,1738332638200,-500.0,0.00016575,2]
[351096203,1738332638209,-500.0,0.00016575,2]
[351096204,1738332638217,-514.16,0.00016575,2]
[351096205,1738332638226,-500.0,0.00016575,2]
[351096206,1738332638236,-500.0,0.00016575,2]
[351096207,1738332638245,-500.0,0.00016575,2]
[351096208,1738332638254,-500.0,0.00016575,2]
[351096209,1738332638263,-1776.14,0.00016575,2]
[351096210,1738332638272,-500.0,0.00016575,2]
[351096211,1738332638281,-701.44,0.00016575,2]
[351096212,1738332638289,-37.56354737,0.00016575,2]
[351096213,1738332638327,-462.43645263,0.00016575,2]
[351096214,1738332638336,-500.0,0.00016575,2]
[351096215,1738332638346,-532.18,0.00016575,2]
[351096216,1738332638356,-625.29,0.00016575,2]
[351096217,1738332638366,-529.97,0.00016575,2]
[351096218,1738332638377,-462.72354738,0.00016575,2]
[351096219,1738332638390,-324.34645262,0.00016575,2]
[351096220,1738332638402,-500.0,0.00016575,2]
[351096221,1738332638412,-500.0,0.00016575,2]
[351096222,1738332638422,-500.0,0.00016575,2]
[351096223,1738332638431,-864.56,0.00016575,2]
[351096224,1738332638441,-500.0,0.00016575,2]
[351096225,1738332638452,-500.0,0.00016575,2]
[351096226,1738332638461,-617.03,0.00016575,2]
[351096227,1738332638471,-500.0,0.00016575,2]
[351096228,1738332638482,-500.0,0.00016575,2]
[351096229,1738332638491,-626.56,0.00016575,2]
[351096230,1738332638501,-613.97,0.00016575,2]
[351096231,1738332638510,-500.0,0.00016575,2]
[351096232,1738332638518,-500.0,0.00016575,2]
[351096233,1738332638528,-624.27,0.00016575,2]
[351096234,1738332638537,-500.0,0.00016575,2]
[351096235,1738332638547,-160.28459236,0.00016575,2]
[351096236,1738332638556,-1254.85,0.00016575,2]
[351096237,1738332638566,-500.0,0.00016575,2]
[351096238,1738332638575,-267.52085385,0.00016575,2]
[351096239,1738332638585,-500.0,0.00016575,2]
[351096240,1738332638594,-531.67003914,0.00016575,2]
[351096241,1738332638602,-102.53806203,0.00016575,2]
[351096242,1738332638614,-397.46193797,0.00016575,2]
[351096243,1738332638624,-568.77,0.00016575,2]
[351096244,1738332638633,-500.0,0.00016575,2]
[351096245,1738332638642,-500.0,0.00016575,2]
[351096246,1738332638651,-500.0,0.00016575,2]
[351096247,1738332638661,-500.0,0.00016575,2]
[351096248,1738332638670,-500.0,0.00016575,2]
[351096249,1738332638680,-500.0,0.00016575,2]
[351096250,1738332638689,-500.0,0.00016575,2]
[351096251,1738332638698,-989.64,0.00016575,2]
[351096252,1738332638707,-438.24115516,0.00016575,2]
[351096253,1738332638716,-500.0,0.00016575,2]
[351096254,1738332638726,-540.63,0.00016575,2]
[351096255,1738332638735,-511.81,0.00016575,2]
[351096256,1738332638745,-500.0,0.00016575,2]
[351096257,1738332638754,-1014.03,0.00016575,2]
[351096258,1738332638763,-643.04,0.00016575,2]
[351096259,1738332638776,-482.37690687,0.00016575,2]
[351096260,1738332639641,-213.57758436,0.00012856,2]
[351096261,1738332639651,-112.17297238,0.00016438,2]
[351096262,1738332639662,-387.82702762,0.00016438,2]
[351096263,1738332639672,-500.0,0.00016438,2]
[351096264,1738332639681,-500.0,0.00016438,2]
[351096265,1738332639690,-500.0,0.00016438,2]
[351096266,1738332639699,-90.68309313,0.00016575,2]
[351096267,1738332639708,-500.0,0.00016575,2]
[351096268,1738332639717,-811.49,0.00016575,2]
[351096269,1738332639727,-627.26,0.00016575,2]
[351096270,1738332639736,-1032.97,0.00016575,2]
[351096271,1738332639745,-500.0,0.00016575,2]
[351096272,1738332639754,-382.1473328,0.00016575,2]
[351096273,1738332639763,-500.0,0.00016575,2]
[351096274,1738332639773,-606.71,0.00016575,2]
[351096275,1738332639782,-598.75,0.00016575,2]
[351096276,1738332639791,-551.91,0.00016575,2]
[351096277,1738332639800,-500.0,0.00016575,2]
[351096278,1738332639809,-500.0,0.00016575,2]
[351096279,1738332639818,-648.75,0.00016575,2]
[351096280,1738332639827,-1229.15,0.00016575,2]
[351096281,1738332639836,-584.9,0.00016575,2]
[351096282,1738332639846,-500.0,0.00016575,2]
[351096283,1738332639855,-554.25,0.00016575,2]
[351096284,1738332639864,-565.14711426,0.00016575,2]
[351096285,1738332639873,-527.41,0.00016575,2]
[351096286,1738332639882,-500.0,0.00016575,2]
[351096287,1738332639891,-500.0,0.00016575,2]
[351096288,1738332639900,-500.0,0.00016575,2]
[351096289,1738332639910,-524.82,0.00016575,2]
[351096290,1738332639919,-500.0,0.00016575,2]
[351096291,1738332639928,-559.16,0.00016575,2]
[351096292,1738332639937,-500.0,0.00016575,2]
[351096293,1738332639946,-500.0,0.00016575,2]
[351096294,1738332639955,-500.0,0.00016575,2]
[351096295,1738332639965,-500.0,0.00016575,2]
[351096296,1738332639974,-500.0,0.00016575,2]
[351096297,1738332639984,-659.3,0.00016575,2]
[351096298,1738332639993,-500.0,0.00016575,2]
[351096299,1738332640002,-464.58094647,0.00016575,2]
[351096300,1738332640011,-602.5,0.00016575,2]
[351096301,1738332640020,-500.0,0.00016575,2]
[351096302,1738332640030,-582.67,0.00016575,2]
[351096303,1738332640039,-500.0,0.00016575,2]
[351096304,1738332640049,-500.0,0.00016575,2]
[351096305,1738332640059,-783.84,0.00016575,2]
[351096306,1738332640069,-500.0,0.00016575,2]
[351096307,1738332640152,-500.0,0.00016575,2]
[351096310,1738332640195,-500.0,0.00016575,2]
[351096312,1738332640205,-500.0,0.00016575,2]
[351096313,1738332640214,-500.0,0.00016575,2]
[351096314,1738332640224,-500.0,0.00016575,2]
[351096315,1738332640233,-500.0,0.00016575,2]
[351096316,1738332640242,-500.0,0.00016575,2]
[351096317,1738332640251,-575.49276664,0.00016575,2]
[351096318,1738332640261,-500.0,0.00016575,2]
[351096319,1738332640270,-679.77,0.00016575,2]
[351096320,1738332640280,-500.0,0.00016575,2]
[351096321,1738332640290,-729.4,0.00016575,2]
[351096322,1738332640300,-500.0,0.00016575,2]
[351096323,1738332640310,-1018.33,0.00016575,2]
[351096324,1738332640321,-500.0,0.00016575,2]
[351096325,1738332640333,-500.0,0.00016575,2]
[351096326,1738332640342,-530.36,0.00016575,2]
[351096327,1738332640358,-500.0,0.00016575,2]
[351096328,1738332640369,-500.0,0.00016575,2]
[351096329,1738332640378,-500.0,0.00016575,2]
[351096330,1738332640388,-500.0,0.00016575,2]
[351096331,1738332640397,-500.0,0.00016575,2]
[351096332,1738332640407,-500.0,0.00016575,2]
[351096333,1738332640418,-500.0,0.00016575,2]
[351096334,1738332640427,-882.77,0.00016575,2]
[351096335,1738332640437,-500.0,0.00016575,2]
[351096336,1738332640446,-500.0,0.00016575,2]
[351096337,1738332640455,-577.12,0.00016575,2]
[351096338,1738332640464,-500.0,0.00016575,2]
[351096339,1738332640474,-500.0,0.00016575,2]
[351096340,1738332640483,-500.0,0.00016575,2]
[351096341,1738332640494,-638.97,0.00016575,2]
[351096342,1738332640504,-823.05,0.00016575,2]
[351096343,1738332640513,-652.94,0.00016575,2]
[351096344,1738332640522,-500.0,0.00016575,2]
[351096345,1738332640531,-500.0,0.00016575,2]
[351096346,1738332640540,-500.0,0.00016575,2]
[351096347,1738332640550,-500.0,0.00016575,2]
[351096348,1738332640560,-500.0,0.00016575,2]
[351096349,1738332640570,-961.61,0.00016575,2]
[351096350,1738332640579,-500.0,0.00016575,2]
[351096351,1738332640589,-500.0,0.00016575,2]
[351096352,1738332640600,-500.0,0.00016575,2]
[351096353,1738332640610,-500.0,0.00016575,2]
[351096354,1738332640620,-538.61,0.00016575,2]
[351096355,1738332640629,-500.0,0.00016575,2]
[351096356,1738332640639,-592.67,0.00016575,2]
[351096357,1738332640648,-500.0,0.00016575,2]
[351096358,1738332640659,-500.0,0.00016575,2]
[351096359,1738332640669,-500.0,0.00016575,2]
[351096360,1738332640678,-391.28706192,0.00016575,2]
[351096361,1738332640687,-500.0,0.00016575,2]
[351096362,1738332640696,-500.0,0.00016575,2]
[351096363,1738332640705,-500.0,0.00016575,2]
[351096364,1738332640715,-669.37,0.00016575,2]
[351096365,1738332640728,-500.0,0.00016575,2]
[351096366,1738332640738,-881.92,0.00016575,2]
[351096367,1738332640747,-504.26,0.00016575,2]
[351096368,1738332640757,-650.0,0.00016575,2]
[351096369,1738332640766,-534.45,0.00016575,2]
[351096370,1738332640775,-500.0,0.00016575,2]